Cogmind - Beta 13 @@@ ROGUE MODE // 2024.04.21 @ 13:37:27 Player: Powerlich_soros Result: Self-destructed Performance ------------- Evolutions (1) 500 Regions Visited (2) 400 Robots Destroyed (21) 105 Value Destroyed (472) 472 Prototype IDs (1) 20 Alien Tech Used (0) 0 Bonus (0) 0 TOTAL SCORE: 1497 Bonus ------- None Cogmind --------- Core Integrity 308/400 Matter 293/300 Energy 33/100 System Corruption 1% Temperature Cool (0) Movement Flying (37) Location -9/Materials Parts ------- > --- POWER (1) -------- (None) > --- PROPULSION (2) --- Flight Unit Flight Unit > --- UTILITY (4) ------ Hacking Suite > --- WEAPON (2) ------- Light Assault Rifle EMP Blaster > --- INVENTORY (5) ---- Flight Unit EMP Blaster EMP Blaster Peak State ------------ > --- POWER ------------ Light Nuclear Core > --- PROPULSION ------- Flight Unit Flight Unit > --- UTILITY ---------- Small Storage Unit > --- WEAPON ----------- EM Pulse Gun Particle Gun > --- INVENTORY -------- Ion Engine Flight Unit Flight Unit Assault Rifle Light Assault Rifle [Rating: 9] Favorites ----------- Power Light Ion Engine Engine Light Ion Engine Power Core Light Nuclear Core Propulsion Flight Unit Wheel Compact Wheel Flight Unit Flight Unit Utility Small Storage Unit Storage Small Storage Unit Hackware Hacking Suite Weapon EM Pulse Gun Energy Gun EM Pulse Gun Ballistic Gun Light Assault Rifle Launcher EMP Blaster Build | -11 -10 -9 ------- Run | Yrd Mat Mat Slots Evolved 2 | . . 2 Power . | . . . Propulsion . | . . . Utility 2 | . . 2 Weapon . | . . . Parts Attached 21 | 6 13 2 Power 3 | 1 2 . Engine 2 | 1 1 . Core 1 | . 1 . Reactor . | . . . Propulsion 5 | 2 2 1 Treads . | . . . Leg . | . . . Wheel 2 | 2 . . Hover . | . . . Flight 3 | . 2 1 Utility 2 | 1 1 . Device . | . . . Storage 1 | 1 . . Processor . | . . . Hackware 1 | . 1 . Protection . | . . . Artifact . | . . . Weapon 11 | 2 8 1 Energy Gun 5 | 1 4 . Energy Cannon . | . . . Ballistic Gun 4 | 1 3 . Ballistic Cannon . | . . . Launcher 2 | . 1 1 Special Weapon . | . . . Impact Weapon . | . . . Slashing Weapon . | . . . Piercing Weapon . | . . . Special Melee Weapon . | . . . Unidentified Prototypes . | . . . Corrupted Parts 2 | . 2 . System Corruption 7 | . 7 . Parts Lost 5 | . 2 3 Power 1 | . . 1 Propulsion 2 | . 1 1 Utility . | . . . Weapon 2 | . 1 1 Highest Loss Streak 2 | . 2 1 To Critical Strikes . | . . . Average Slot Usage (%) 74 | . 77 64 Engine 10 | . 10 10 Core 2 | . 3 . Wheel 10 | . 12 . Flight 16 | . 14 21 Storage 5 | . 6 . Hackware 3 | . . 11 Energy Gun 12 | . 14 5 Ballistic Gun 11 | . 12 11 Launcher 1 | . . 4 Naked Turns . | . . . Heaviest Build 14 | 11 14 8 Greatest Support 26 | 26 26 8 Greatest Overweight (x) 2 | . 2 . Average Overweight (x) . | . . . Largest Inventory Capacity 8 | 8 8 5 Average Capacity 6 | 7 6 5 Most Carried 7 | 2 7 5 Average Carried 3 | . 4 3 Final Capacity 8 | 8 5 5 Final Carried 5 | 2 5 3 Class Distribution -------------------- 76% | Mutant 23% | Scavenger-Mutant Dominant Class ---------------- Mutant | -10/Materials Scavenger-Mutant | -9/Materials Resources | -11 -10 -9 ----------- Run | Yrd Mat Mat Matter Collected 535 | 227 201 107 Remotely . | . . . Salvage Created 723 | . 472 251 Parts 55 | . 34 21 Haulers Intercepted 3 | . 2 1 Recyclers Shooed . | . . . Parts Field Recycled . | . . . Retrieved Matter . | . . . Parts Self-Destructed . | . . . Prevented . | . . . Kills | -11 -10 -9 ------- Run | Yrd Mat Mat Combat Hostiles Destroyed 11 | . 8 3 Guns 10 | . 7 3 AOE 1 | . 1 . Classes Destroyed 8 | . 6 2 Worker 1 | . 1 . Builder 1 | . . 1 Hauler 3 | . 2 1 Operator 3 | . 2 1 Watcher 2 | . 2 . Swarmer 3 | . 3 . Grunt 6 | . 5 1 Sentry 2 | . . 2 Best Kill Streak 3 | . 3 3 Combat Bots Only 3 | . 3 2 Max Kills in Single Turn 2 | . 2 1 Gunslinging 1 | . 1 . Exploded 1 | . 1 . Melee . | . . . Uniques/NPCs Destroyed . | . . . Combat | -11 -10 -9 -------- Run | Yrd Mat Mat Hostile Shots Fired 81 | . 42 39 Missed 23 | . 12 11 Damage Taken 705 | . 337 368 Core 146 | . 54 92 Absorbed by Shields . | . . . Regen/Repaired (Parts) 29 | . 29 . Core Remaining (%) 89 | 100 78 . Volleys Fired 68 | . 39 29 Largest 2 | . 2 2 Hottest 80 | . 80 60 Shots Fired 121 | . 74 47 Gun 108 | . 72 36 Cannon . | . . . Launcher 13 | . 2 11 Special . | . . . Kinetic 57 | . 34 23 Thermal . | . . . Explosive . | . . . Electromagnetic 64 | . 40 24 Robot Hit Streak 9 | . 9 9 Robot Miss Streak 4 | . 4 4 Penetration Max . | . . . Secondary Targets 1 | . 1 . Max Gunslinging Chain 1 | . 1 . Shots Hit Robots 81 | . 49 32 Core Hits 37 | . 26 11 Critical Kills . | . . . Critical Parts Destroyed . | . . . Critical Strikes 1 | . . 1 Corrupt 1 | . . 1 Melee Attacks . | . . . Impact . | . . . Slashing . | . . . Piercing . | . . . Sneak Attacks . | . . . Combat Hostiles . | . . . Follow-up Attacks . | . . . Damage Inflicted 1193 | . 701 492 Guns 798 | . 558 240 Cannons . | . . . Explosions 395 | . 143 252 Melee . | . . . Ramming . | . . . Kinetic 373 | . 238 135 Thermal 143 | . 118 25 Explosive . | . . . Electromagnetic 677 | . 345 332 Impact . | . . . Slashing . | . . . Piercing . | . . . Highest Corruption 7 | . 7 1 Average Corruption 2 | . 2 1 Corruption Purged . | . . . Corruption Blocked . | . . . Effects 6 | . 6 . Message Errors 2 | . 2 . Matter Fused 1 | . 1 . Energy Discharges 3 | . 3 . Overload Shots . | . . . Overflow Damage . | . . . Projectiles . | . . . Explosions . | . . . Melee . | . . . Knockbacks . | . . . Impact . | . . . Kinetic . | . . . Secondary . | . . . Self-Inflicted Damage 73 | . 34 39 Shots 5 | . 1 4 Rammed . | . . . Targets Rammed . | . . . Kicked . | . . . Crushed . | . . . Highest Temperature 96 | . 96 67 Average Temperature 27 | . 29 23 Received Heat Transfer 207 | . 102 105 Siege Activations . | . . . Robots Corrupted . | . . . Combat Hostiles . | . . . Parts Fried 4 | . 1 3 Impact Corruptions . | . . . Robots Melted . | . . . Combat Hostiles . | . . . Parts Melted . | . . . Heat Transferred 200 | . 150 50 Parts Sabotaged . | . . . Parts Stolen . | . . . Parts Stripped . | . . . Power Chain Reactions 3 | . 2 1 Alert | -11 -10 -9 ------- Run | Yrd Mat Mat Peak Influence 261 | . 261 184 Initial 4 | . . 4 Average 70 | . 72 81 Maximum Alert Level 1 | . 1 . Low Security (%) 95 | 100 93 100 Level 1 4 | . 6 . Level 2 . | . . . Level 3 . | . . . Level 4 . | . . . Level 5 . | . . . High Security . | . . . Max Security . | . . . Squads Dispatched 3 | . . 3 Investigation 1 | . . 1 Extermination . | . . . Reinforcement 2 | . . 2 Assault . | . . . Garrison . | . . . Intercept . | . . . Searches Triggered . | . . . Construction Impeded 1 | . . 1 Haulers Reinforced . | . . . Active Scanning Responses . | . . . Cargo Convoy Interrupts . | . . . Stealth | -11 -10 -9 --------- Run | Yrd Mat Mat Distress Signals 2 | . 2 . Communications Jammed . | . . . Distress Signals . | . . . Times Spotted 27 | . 18 9 Peak Tracking Total 5 | . 4 5 Tactical Retreats 2 | . 1 1 Traps | -11 -10 -9 ------- Run | Yrd Mat Mat Traps Triggered 3 | . . 3 Indirectly 3 | . . 3 Trap Hack Attempts . | . . . Triggered . | . . . Disarmed . | . . . Reprogrammed . | . . . Reused . | . . . Traps Extracted . | . . . Installed . | . . . Triggered . | . . . Machines | -11 -10 -9 ---------- Run | Yrd Mat Mat Machines Disabled 3 | . 1 2 Max in Single Turn 1 | . 1 1 Machines Repaired . | . . . Machines Dismantled . | . . . Machines Sabotaged . | . . . Overloaded Fab Kills . | . . . Hacking | -11 -10 -9 --------- Run | Yrd Mat Mat Machines Accessed 16 | . 11 5 Terminals 12 | . 8 4 Fabricators . | . . . Repair Stations 1 | . 1 . Recycling Units 2 | . 2 . Scanalyzers 1 | . . 1 Garrison Access . | . . . Total Hacks 40 | . 27 13 Successful 21 | . 14 7 Failed 19 | . 13 6 Catastrophic 2 | . 2 . Database Lockouts . | . . . Manual 31 | . 18 13 Terminals 32 | . 20 12 Fabricators . | . . . Repair Stations 3 | . 3 . Recycling Units 4 | . 4 . Scanalyzers 1 | . . 1 Garrison Access . | . . . Terminal Hacks 6 | . 4 2 Level Access Points 1 | . 1 . Terminal Index 2 | . 1 1 Alert Level 1 | . 1 . Unreport Threat 2 | . 1 1 Fabricator Hacks . | . . . Repair Station Hacks 3 | . 3 . Scan Component 2 | . 2 . Repair 1 | . 1 . Recycling Unit Hacks 2 | . 2 . Report Inventory 2 | . 2 . Scanalyzer . | . . . Garrison Access Hacks . | . . . Unauthorized Hacks 10 | . 5 5 Terminals 8 | . 4 4 Assimilate 1 | . . 1 Botnet 5 | . 3 2 Operators 2 | . 1 1 Fabricators . | . . . Repair Stations . | . . . Recycling Units 1 | . 1 . Recyclers 1 | . 1 . Scanalyzers 1 | . . 1 Extract 1 | . . 1 Garrison Access . | . . . Data Cores Recovered 2 | . 2 . Used 1 | . 1 . Hacking Detections 15 | . 11 4 Full Trace Events 1 | . . 1 Feedback Events . | . . . Feedback Blocked . | . . . Robot Schematics Acquired . | . . . Robots Built . | . . . Authchips . | . . . Time . | . . . Total Robot Build Rating . | . . . Part Schematics Acquired 3 | . . 3 Parts Built . | . . . Authchips . | . . . Time . | . . . Total Part Build Rating . | . . . Parts Repaired 1 | . 1 . Time 26 | . 26 . Parts Recycled . | . . . Recycled Matter . | . . . Retrieved Matter . | . . . Retrieved Components . | . . . Parts Scanalyzed . | . . . Part Schematics Acquired . | . . . Parts Damaged . | . . . Bothacking | -11 -10 -9 ------------ Run | Yrd Mat Mat Used RIF Installer . | . . . Robots Hacked . | . . . Non-combat . | . . . Combat . | . . . Robot Hacks Applied . | . . . Relay Couplers Released . | . . . Fabnet Peak Effective % . | . . . Robots Rewired . | . . . Allies Hacked . | . . . Hacks Repelled . | . . . Allies | -11 -10 -9 -------- Run | Yrd Mat Mat Total Allies . | . . . Largest Group . | . . . Highest-Rated Group . | . . . Highest-Rated Ally . | . . . Total Orders . | . . . Ally Attacks . | . . . Total Damage . | . . . Kills . | . . . Allies Corrupted . | . . . Allies Melted . | . . . Intel | -11 -10 -9 ------- Run | Yrd Mat Mat Robot Analysis Total . | . . . Derelict Logs Recovered . | . . . Drone Launches . | . . . Drone Recoveries . | . . . Exploration | -11 -10 -9 ------------- Run | Yrd Mat Mat Turns Passed 1174 | 69 866 239 Spaces Moved 1514 | 66 1101 347 Core 3 | 3 . . Treads . | . . . Legs . | . . . Wheels 324 | 63 261 . Hover . | . . . Flight 1187 | . 840 347 Fastest Speed 37 | 50 37 37 Average Speed 48 | 88 50 37 Slowest Speed 205 | 100 205 37 Overloaded Moves . | . . . Propulsion Burnouts . | . . . Robots Hopped 4 | . 4 . Cave-ins Triggered . | . . . Exploration Rate (%) 42 | 4 97 26 Regions Visited 2 Branch Regions . Pre-discovered Areas . | . . . Known Exits Taken 1 | . 1 . Unknown Exits Taken 1 | 1 . . Scrap Searched . | . . . Spaces Dug . | . . . Terrain Destroyed 8 | . 5 3 Melee . | . . . Projectile . | . . . AOE 8 | . 5 3 Terrain Rammed . | . . . Walls Destroyed . | . . . Machines Disabled . | . . . Actions | -11 -10 -9 --------- Run | Yrd Mat Mat Total 1825 | 73 1337 415 Wait 210 | . 173 37 Move 1504 | 65 1092 347 Hop 4 | . 4 . Pick Up 10 | 2 8 . Fast Attach 10 | 6 4 . Attach 4 | . 2 2 Detach 1 | . 1 . Swap 7 | . 7 . Drop 7 | . 7 . Fire 68 | . 39 29 Melee . | . . . Ram . | . . . Kick . | . . . Crush . | . . . Escape Stasis . | . . . Rewire . | . . . Trap . | . . . Miscellaneous . | . . . Route ------- -11/Scrapyard -10/Materials (discovered 6 exits: *Mat x3 / [*Min x2] / [*Sub]) -9/Materials (discovered 1 exit: [*Min]) History --------- Turn | Location | Event 24 | -11/Scrapyard | Discovered new exit (range 15) 70 | -11/Scrapyard | Entered Materials 127 | -10/Materials | Discovered new exit (range 10) 330 | -10/Materials | Build established: Mutant 527 | -10/Materials | Discovered new exit (range 15) 591 | -10/Materials | Discovered new exit (range 14) 670 | -10/Materials | Repaired EM Pulse Gun 689 | -10/Materials | Discovered new exit (range 8) 754 | -10/Materials | Discovered new exit (range 6) 895 | -10/Materials | Identified exit to Materials 911 | -10/Materials | Discovered new exit (range 15) 936 | -10/Materials | Entered another Materials area 936 | -9/Materials | Evolved 2 slots: Utility x2 1152 | -9/Materials | Discovered new exit (range 6) 1175 | -9/Materials | Self-destructed Last Messages --------------- >>Trojan(Assimilate) Trojan loaded successfully. Testing... System interface override in place. 01129_ T-07 Excavator is excavating. 01136_ Connecting with Terminal... 01137_ T-07 Excavator is excavating. 01138_ O-16 Technician: "IFF HANDSHAKE FAILED. SECURING TERMINAL." 01138_ Door malfunctions. 01142_ T-07 Excavator is excavating. 01142_ O-16 Technician uses terminal to summon reinforcements. 01142_ ALERT: Hostiles spotted, dispatching reinforcements to Terminal M002. 01142_ O-16 Technician locks terminal. 01143_ O-16 Technician destroyed. 01145_ Acquired 12 matter. 01152_ EXIT=FOUND 01160_ Lgt. Ion Engine destroyed. 01167_ Door malfunctions. Map ----- +----------------------------------------------------+ | ?????????????????????????????????????????????????? | | ?????????????????????????????????????????????????? | | ?????????????????????????????????????????????????? | | ?????????????????????????????????????????????????? | | ?????????????????????????????????????????????????? | | ?????????????????????????????????????????????????? | | ?????????????????????????????????????????????????? | | ?????????????????????????????????????????????????? | | ?????????????????????????????????????????????????? | | ?????????????????????????????????????????????????? | | ?????????????????????????????????????????????????? | | ?????????????????????????????????????????????????? | | ?????????????????????????????????????????????????? | | ?????????######??????????????????????????????????? | | ?????????# #??????????????????????????????????? | | ?##??????# #??????????????????????????????????? | | ?# ##????# #????????#####?????????????????????? | | ??# ????# ########## ########??????????????? | | ???# ##### + #??????????????? | | ???# / # #####+## ###### #??????????????? | | ???# #/ # #?? ########## #??????????????? | | ???# #% # #? # # #??????????????? | | ???# /= # # # """# #??????#???????? | | ???# ######## # < # """# #### ####????? | | ???# ######?# # # """# ? | | ???# # #?# # # @s s ? | | ?? / # #?# ######## s """# " ? | | ? # # #?? ???????# """# """ ???? | | # # #?? ???????# """# "" ?????? | | " ?# # #??+???????# # """?????? | | " ?# # #??????????########## "??????? | | "??# # #???????????????????# """?????? | | ???# + #???????????????????# !! """?????? | | #+## # #???????????????????? !! ""??????? | | # ###+##???????????????????? ! "??????? | | # #???????????????????? ??????? | | # #???????????????????? ?????? | | #### T +???????????????????? ####???????? | | #?## #???????????????????? ???????????? | | #??# ##???#######????????? ?????????????? | | #??# ##### #?????????????????????????? | | #### ###### ????????????????? | | + ?????????????? | | ####### ######????????????????????? | | #?????# ##### #?????????????????????????? | | #?????#######???### ###?????????????????????????? | | #?????????????????# #???????????????????????????? | | ##?????????????????#%#???????????????????????????? | | ???##########?######+###?????????????????????????? | | ???# #?# =[! #?????????????????????????? | +----------------------------------------------------+ Best States ------------- Heat Dissipation 28 Energy Generation 14 Energy Capacity 160 Matter Stores 300 Matter Capacity 300 Sight Range 16 Terrain Scan Density 10 Evasion (%) 62 Offensive Hacking 10 Item Schematics ----------------- Cld. Ion Engine | -9/Materials | Extracted Imp. Targeting Computer | -9/Materials | Extracted Hover Unit | -9/Materials | Extracted Robot Schematics ------------------ None Fabricated ------------ Nothing Alien Tech Used ----------------- None Achievements -------------- None Challenges ------------ None Game ------ Seed MakeshiftAblativeSink Manual? 0 Play Time 00:25:54 Cumulative 21.9 hours Start 2024.04.21 @ 13:12:42 End 2024.04.21 @ 13:37:27 Sessions 1 Manual Loads 0 Difficulty Rogue Special Mode None Game No. 19 Rogue 19 Adventurer 0 Explorer 0 Win Type - Total 0 Types 0/0/0/0/0/0/0/0/0 Lore% 13 Gallery% 19 Achievement% 18 Wizard Run 0 Options --------- Layout 0 ASCII 1 Keyboard 1 Movement Vi Keybinds 0 Fullscreen 1 Font 20/SmallcapsGlow Map View 66x50 Zoom Use 0% Tactical HUD 1 Map Filters NONE Filters NONE Steam 1 RUN: 1b0108a9-8e27-4f4a-9efb-08db3a4808aa